[Event "Titled Tuesday Blitz August 22 Late 2023"]
[White "Acikel, Mert"]
[Black "Mr_November18"]
[WhiteFideId "12956465"]
[WhiteElo "2311"]
[BlackElo "1968"]
[Result "1-0"]
[Round "6"]
[TimeControl "180+1"]
[Date "2023.08.22"]
[WhiteClock "0:01:24"]
[BlackClock "0:00:37"]
[Board "171"]

1. e4 {[%clk 0:02:46]}  c5 {[%clk 0:02:59]} 2. c3 {[%clk 0:02:46]}  d6 {[%clk 0:02:58]} 3. d4 {[%clk 0:02:45]}  Nf6 {[%clk 0:02:59]} 4. Bd3 {[%clk 0:02:39]}  g6 {[%clk 0:02:57]} 5. Nf3 {[%clk 0:02:38]}  Bg7 {[%clk 0:02:57]} 6. h3 {[%clk 0:02:36]}  O-O {[%clk 0:02:56]} 7. O-O {[%clk 0:02:37]}  cxd4 {[%clk 0:02:55]} 8. cxd4 {[%clk 0:02:37]}  d5 {[%clk 0:02:56]} 9. e5 {[%clk 0:02:36]}  Ne4 {[%clk 0:02:56]} 10. Re1 {[%clk 0:02:32]}  f5 {[%clk 0:02:55]} 11. Nbd2 {[%clk 0:02:21]}  e6 {[%clk 0:02:53]} 12. Nb3 {[%clk 0:02:19]}  Nc6 {[%clk 0:02:38]} 13. Be3 {[%clk 0:02:18]}  a5 {[%clk 0:02:33]} 14. Rc1 {[%clk 0:02:17]}  Nb4 {[%clk 0:02:26]} 15. Bb1 {[%clk 0:02:17]}  Bd7 {[%clk 0:02:20]} 16. Nc5 {[%clk 0:02:16]}  b6 {[%clk 0:02:16]} 17. Nxd7 {[%clk 0:02:13]}  Qxd7 {[%clk 0:02:15]} 18. a3 {[%clk 0:02:06]}  Nc6 {[%clk 0:02:12]} 19. Qa4 {[%clk 0:02:06]}  Rac8 {[%clk 0:02:10]} 20. Bxe4 {[%clk 0:01:55]}  fxe4 {[%clk 0:02:08]} 21. Nd2 {[%clk 0:01:52]}  Nxe5 {[%clk 0:02:05]} 22. Qxd7 {[%clk 0:01:47]}  Nxd7 {[%clk 0:02:04]} 23. b4 {[%clk 0:01:46]}  axb4 {[%clk 0:01:57]} 24. axb4 {[%clk 0:01:46]}  b5 {[%clk 0:01:57]} 25. f3 {[%clk 0:01:46]}  exf3 {[%clk 0:01:54]} 26. Nxf3 {[%clk 0:01:47]}  Nb6 {[%clk 0:01:53]} 27. Rc5 {[%clk 0:01:46]}  Nc4 {[%clk 0:01:50]} 28. Bf2 {[%clk 0:01:39]}  Rb8 {[%clk 0:01:49]} 29. Rxe6 {[%clk 0:01:35]}  Rf4 {[%clk 0:01:24]} 30. Rxd5 {[%clk 0:01:33]}  Nb2 {[%clk 0:01:04]} 31. Bg3 {[%clk 0:01:33]}  Rbf8 {[%clk 0:00:59]} 32. Bxf4 {[%clk 0:01:33]}  Rxf4 {[%clk 0:00:59]} 33. Rd8+ {[%clk 0:01:33]}  Bf8 {[%clk 0:00:58]} 34. d5 {[%clk 0:01:29]}  Kf7 {[%clk 0:00:52]} 35. Ng5+ {[%clk 0:01:26]}  Kg8 {[%clk 0:00:37]} 36. Ree8 {[%clk 0:01:24]} 1-0


[Site "https://www.chess.com"]

[Event "Titled Tuesday Blitz August 22 Late 2023"]
[White "Burke, Paul"]
[Black "Brahami, Lamine"]
[WhiteFideId "2605767"]
[BlackFideId "7905637"]
[WhiteElo "1855"]
[BlackElo "2299"]
[Result "0-1"]
[Round "6"]
[TimeControl "180+1"]
[Date "2023.08.22"]
[WhiteClock "0:00:34"]
[BlackClock "0:01:38"]
[Board "173"]

1. e4 {[%clk 0:03:00]}  c5 {[%clk 0:03:00]} 2. d4 {[%clk 0:03:00]}  cxd4 {[%clk 0:02:59]} 3. c3 {[%clk 0:03:01]}  dxc3 {[%clk 0:03:00]} 4. Nxc3 {[%clk 0:03:01]}  d6 {[%clk 0:03:00]} 5. Nf3 {[%clk 0:03:01]}  Nc6 {[%clk 0:02:59]} 6. Bc4 {[%clk 0:03:01]}  e6 {[%clk 0:02:59]} 7. O-O {[%clk 0:03:00]}  Nf6 {[%clk 0:03:00]} 8. Qe2 {[%clk 0:03:01]}  Be7 {[%clk 0:03:00]} 9. Rd1 {[%clk 0:03:01]}  Nd7 {[%clk 0:02:57]} 10. Nb5 {[%clk 0:02:56]}  Nde5 {[%clk 0:02:56]} 11. Nxe5 {[%clk 0:02:50]}  Nxe5 {[%clk 0:02:56]} 12. Bb3 {[%clk 0:02:30]}  a6 {[%clk 0:02:55]} 13. Nd4 {[%clk 0:02:29]}  O-O {[%clk 0:02:49]} 14. f4 {[%clk 0:02:29]}  Nc6 {[%clk 0:02:47]} 15. Nf3 {[%clk 0:02:28]}  b5 {[%clk 0:02:41]} 16. Be3 {[%clk 0:02:21]}  Na5 {[%clk 0:02:39]} 17. Bc2 {[%clk 0:02:20]}  Bb7 {[%clk 0:02:37]} 18. e5 {[%clk 0:02:16]}  d5 {[%clk 0:02:36]} 19. Qf2 {[%clk 0:02:13]}  Nc4 {[%clk 0:02:34]} 20. Bc1 {[%clk 0:02:09]}  Rc8 {[%clk 0:02:32]} 21. b3 {[%clk 0:01:58]}  Bc5 {[%clk 0:02:14]} 22. Nd4 {[%clk 0:01:58]}  Na3 {[%clk 0:02:14]} 23. Bxa3 {[%clk 0:01:46]}  Bxa3 {[%clk 0:02:12]} 24. Kh1 {[%clk 0:01:35]}  Bb2 {[%clk 0:02:10]} 25. Rab1 {[%clk 0:01:34]}  Bxd4 {[%clk 0:02:09]} 26. Rxd4 {[%clk 0:01:34]}  Qc7 {[%clk 0:02:09]} 27. Rd2 {[%clk 0:01:26]}  h6 {[%clk 0:02:09]} 28. Qg3 {[%clk 0:01:17]}  Qc3 {[%clk 0:02:07]} 29. Qf2 {[%clk 0:01:11]}  Rc7 {[%clk 0:02:04]} 30. Rbd1 {[%clk 0:01:09]}  Rfc8 {[%clk 0:02:04]} 31. Bb1 {[%clk 0:00:53]}  Qa5 {[%clk 0:01:51]} 32. f5 {[%clk 0:00:49]}  exf5 {[%clk 0:01:44]} 33. Qxf5 {[%clk 0:00:47]}  g6 {[%clk 0:01:44]} 34. Qh3 {[%clk 0:00:34]}  Qxd2 {[%clk 0:01:38]} 0-1


[Site "https://www.chess.com"]

[Event "Titled Tuesday Blitz August 22 Late 2023"]
[White "Deviprasath, Sharvesh"]
[Black "Oliveira, Tiago Batista"]
[WhiteFideId "30938228"]
[BlackFideId "2108291"]
[WhiteElo "2484"]
[BlackElo "2136"]
[Result "1-0"]
[Round "6"]
[TimeControl "180+1"]
[Date "2023.08.22"]
[WhiteClock "0:01:33"]
[BlackClock "0:00:00"]
[Board "176"]

1. e4 {[%clk 0:03:00]}  e5 {[%clk 0:02:56]} 2. Nf3 {[%clk 0:02:53]}  Nc6 {[%clk 0:02:54]} 3. Bc4 {[%clk 0:02:54]}  Bc5 {[%clk 0:02:51]} 4. O-O {[%clk 0:02:53]}  Nf6 {[%clk 0:02:49]} 5. d4 {[%clk 0:02:50]}  exd4 {[%clk 0:02:49]} 6. e5 {[%clk 0:02:51]}  d5 {[%clk 0:02:49]} 7. exf6 {[%clk 0:02:52]}  dxc4 {[%clk 0:02:48]} 8. fxg7 {[%clk 0:02:53]}  Rg8 {[%clk 0:02:48]} 9. Bg5 {[%clk 0:02:53]}  Be7 {[%clk 0:02:38]} 10. Re1 {[%clk 0:02:48]}  Be6 {[%clk 0:02:36]} 11. Bxe7 {[%clk 0:02:46]}  Qxe7 {[%clk 0:02:31]} 12. Nxd4 {[%clk 0:02:45]}  Nxd4 {[%clk 0:01:46]} 13. Qxd4 {[%clk 0:02:32]}  Qd6 {[%clk 0:01:32]} 14. Qxd6 {[%clk 0:02:13]}  cxd6 {[%clk 0:01:31]} 15. Nc3 {[%clk 0:02:14]}  O-O-O {[%clk 0:01:28]} 16. Nb5 {[%clk 0:02:12]}  Rxg7 {[%clk 0:01:18]} 17. Nxa7+ {[%clk 0:02:09]}  Kb8 {[%clk 0:00:58]} 18. Nb5 {[%clk 0:02:10]}  h5 {[%clk 0:00:47]} 19. Rad1 {[%clk 0:02:04]}  d5 {[%clk 0:00:38]} 20. Nd4 {[%clk 0:02:02]}  Rdg8 {[%clk 0:00:29]} 21. g3 {[%clk 0:01:56]}  Rg6 {[%clk 0:00:29]} 22. f4 {[%clk 0:01:45]}  Bg4 {[%clk 0:00:20]} 23. Rd2 {[%clk 0:01:40]}  h4 {[%clk 0:00:20]} 24. Kg2 {[%clk 0:01:41]}  hxg3 {[%clk 0:00:19]} 25. hxg3 {[%clk 0:01:42]}  Rh6 {[%clk 0:00:15]} 26. Re5 {[%clk 0:01:40]}  Bh3+ {[%clk 0:00:14]} 27. Kf2 {[%clk 0:01:38]}  Rhg6 {[%clk 0:00:10]} 28. Ne2 {[%clk 0:01:37]}  Bg4 {[%clk 0:00:09]} 29. Rexd5 {[%clk 0:01:35]}  Bxe2 {[%clk 0:00:09]} 30. Rd8+ {[%clk 0:01:36]}  Kc7 {[%clk 0:00:08]} 31. Rxg8 {[%clk 0:01:36]}  Rxg8 {[%clk 0:00:08]} 32. Rxe2 {[%clk 0:01:35]}  f5 {[%clk 0:00:07]} 33. Re5 {[%clk 0:01:35]}  Rf8 {[%clk 0:00:07]} 34. Rc5+ {[%clk 0:01:36]}  Kd6 {[%clk 0:00:07]} 35. Rxc4 {[%clk 0:01:36]}  Kd5 {[%clk 0:00:07]} 36. Rc3 {[%clk 0:01:37]}  Ra8 {[%clk 0:00:05]} 37. a3 {[%clk 0:01:37]}  Rh8 {[%clk 0:00:04]} 38. Rb3 {[%clk 0:01:38]}  Rh7 {[%clk 0:00:03]} 39. Ke3 {[%clk 0:01:36]}  Rh3 {[%clk 0:00:02]} 40. Kf3 {[%clk 0:01:34]}  Rh2 {[%clk 0:00:02]} 41. Rb5+ {[%clk 0:01:33]}  Ke6 {[%clk 0:00:00]} 42. Rxb7 {[%clk 0:01:33]} 1-0


[Site "https://www.chess.com"]

[Event "Titled Tuesday Blitz August 22 Late 2023"]
[White "Manukian, Artak"]
[Black "Alfaro, William"]
[WhiteFideId "13301373"]
[BlackFideId "6100457"]
[WhiteElo "2394"]
[BlackElo "2249"]
[Result "0-1"]
[Round "6"]
[TimeControl "180+1"]
[Date "2023.08.22"]
[WhiteClock "0:01:16"]
[BlackClock "0:01:57"]
[Board "177"]

1. e4 {[%clk 0:02:59]}  e5 {[%clk 0:02:59]} 2. Nf3 {[%clk 0:02:59]}  Nc6 {[%clk 0:02:59]} 3. d4 {[%clk 0:03:00]}  exd4 {[%clk 0:02:59]} 4. Nxd4 {[%clk 0:03:01]}  Nf6 {[%clk 0:02:57]} 5. Nxc6 {[%clk 0:03:00]}  bxc6 {[%clk 0:02:57]} 6. e5 {[%clk 0:03:00]}  Qe7 {[%clk 0:02:57]} 7. Qe2 {[%clk 0:03:00]}  Nd5 {[%clk 0:02:55]} 8. c4 {[%clk 0:03:00]}  Nb6 {[%clk 0:02:55]} 9. b3 {[%clk 0:02:57]}  g6 {[%clk 0:02:54]} 10. g3 {[%clk 0:02:53]}  Bg7 {[%clk 0:02:53]} 11. Bb2 {[%clk 0:02:53]}  O-O {[%clk 0:02:53]} 12. Bg2 {[%clk 0:02:53]}  Re8 {[%clk 0:02:52]} 13. f4 {[%clk 0:02:48]}  f6 {[%clk 0:02:48]} 14. O-O {[%clk 0:02:44]}  fxe5 {[%clk 0:02:48]} 15. fxe5 {[%clk 0:02:32]}  Bxe5 {[%clk 0:02:46]} 16. Bxe5 {[%clk 0:02:31]}  Qxe5 {[%clk 0:02:46]} 17. Qxe5 {[%clk 0:02:31]}  Rxe5 {[%clk 0:02:45]} 18. Nc3 {[%clk 0:02:32]}  Bb7 {[%clk 0:02:38]} 19. a4 {[%clk 0:02:26]}  a5 {[%clk 0:02:36]} 20. Rfe1 {[%clk 0:02:24]}  Rae8 {[%clk 0:02:34]} 21. Kf2 {[%clk 0:02:22]}  d5 {[%clk 0:02:17]} 22. c5 {[%clk 0:02:04]}  Nd7 {[%clk 0:02:13]} 23. Rxe5 {[%clk 0:02:04]}  Nxe5 {[%clk 0:02:08]} 24. h4 {[%clk 0:01:45]}  Nd3+ {[%clk 0:02:07]} 25. Kg1 {[%clk 0:01:43]}  Nxc5 {[%clk 0:02:06]} 26. Rb1 {[%clk 0:01:36]}  Re3 {[%clk 0:02:01]} 27. Nd1 {[%clk 0:01:16]}  Rxb3 {[%clk 0:01:57]} 0-1


[Site "https://www.chess.com"]

[Event "Titled Tuesday Blitz August 22 Late 2023"]
[White "Bazzano, Sebastian"]
[Black "rikchessmx"]
[WhiteFideId "104566"]
[WhiteElo "2220"]
[BlackElo "2392"]
[Result "1-0"]
[Round "6"]
[TimeControl "180+1"]
[Date "2023.08.22"]
[WhiteClock "0:00:39"]
[BlackClock "0:00:03"]
[Board "178"]

1. d4 {[%clk 0:02:59]}  Nf6 {[%clk 0:01:12]} 2. Bf4 {[%clk 0:02:59]}  e6 {[%clk 0:01:11]} 3. e3 {[%clk 0:02:58]}  Bd6 {[%clk 0:01:11]} 4. Bg3 {[%clk 0:02:57]}  Bxg3 {[%clk 0:01:11]} 5. hxg3 {[%clk 0:02:57]}  b6 {[%clk 0:01:11]} 6. Nf3 {[%clk 0:02:57]}  Bb7 {[%clk 0:01:11]} 7. Bd3 {[%clk 0:02:57]}  h6 {[%clk 0:01:11]} 8. Nbd2 {[%clk 0:02:56]}  d6 {[%clk 0:01:10]} 9. O-O {[%clk 0:02:46]}  Nbd7 {[%clk 0:01:09]} 10. e4 {[%clk 0:02:37]}  O-O {[%clk 0:00:57]} 11. Re1 {[%clk 0:02:36]}  Qe7 {[%clk 0:00:58]} 12. e5 {[%clk 0:02:24]}  Ne8 {[%clk 0:00:56]} 13. Be4 {[%clk 0:02:19]}  d5 {[%clk 0:00:55]} 14. Bd3 {[%clk 0:02:19]}  c5 {[%clk 0:00:56]} 15. c3 {[%clk 0:02:19]}  Nc7 {[%clk 0:00:55]} 16. Rc1 {[%clk 0:02:16]}  Rfd8 {[%clk 0:00:55]} 17. Qe2 {[%clk 0:02:10]}  Nf8 {[%clk 0:00:53]} 18. Bb1 {[%clk 0:02:02]}  a5 {[%clk 0:00:52]} 19. Nf1 {[%clk 0:01:57]}  Ba6 {[%clk 0:00:49]} 20. Bd3 {[%clk 0:01:56]}  Bxd3 {[%clk 0:00:49]} 21. Qxd3 {[%clk 0:01:57]}  c4 {[%clk 0:00:50]} 22. Qe3 {[%clk 0:01:55]}  b5 {[%clk 0:00:51]} 23. g4 {[%clk 0:01:53]}  b4 {[%clk 0:00:44]} 24. Ng3 {[%clk 0:01:45]}  a4 {[%clk 0:00:43]} 25. cxb4 {[%clk 0:01:35]}  a3 {[%clk 0:00:43]} 26. bxa3 {[%clk 0:01:34]}  Nb5 {[%clk 0:00:44]} 27. g5 {[%clk 0:01:31]}  hxg5 {[%clk 0:00:41]} 28. Nxg5 {[%clk 0:01:30]}  Rxa3 {[%clk 0:00:42]} 29. Qf4 {[%clk 0:01:29]}  Ng6 {[%clk 0:00:39]} 30. Qg4 {[%clk 0:01:27]}  Rxa2 {[%clk 0:00:34]} 31. Qh5 {[%clk 0:01:17]}  Nxd4 {[%clk 0:00:31]} 32. Ra1 {[%clk 0:01:04]}  Rxa1 {[%clk 0:00:26]} 33. Rxa1 {[%clk 0:01:05]}  c3 {[%clk 0:00:23]} 34. Qh7+ {[%clk 0:00:57]}  Kf8 {[%clk 0:00:23]} 35. Nf3 {[%clk 0:00:43]}  Nxf3+ {[%clk 0:00:22]} 36. gxf3 {[%clk 0:00:44]}  c2 {[%clk 0:00:18]} 37. Nh5 {[%clk 0:00:43]}  Qxb4 {[%clk 0:00:13]} 38. Qxg7+ {[%clk 0:00:39]}  Ke8 {[%clk 0:00:12]} 39. Nf6+ {[%clk 0:00:38]}  Ke7 {[%clk 0:00:03]} 40. Ra7+ {[%clk 0:00:38]}  Rd7 {[%clk 0:00:03]} 41. Rxd7# {[%clk 0:00:39]} 1-0


[Site "https://www.chess.com"]

[Event "Titled Tuesday Blitz August 22 Late 2023"]
[White "disciplinedbrat"]
[Black "Kiseljova, Marya"]
[BlackFideId "4155009"]
[WhiteElo "2324"]
[BlackElo "2192"]
[Result "1/2-1/2"]
[Round "6"]
[TimeControl "180+1"]
[Date "2023.08.22"]
[WhiteClock "0:02:03"]
[BlackClock "0:02:20"]
[Board "179"]

1. Nf3 {[%clk 0:03:00]}  d5 {[%clk 0:02:59]} 2. e3 {[%clk 0:03:00]}  Bg4 {[%clk 0:02:59]} 3. c4 {[%clk 0:03:00]}  e6 {[%clk 0:02:57]} 4. Qb3 {[%clk 0:02:58]}  Bxf3 {[%clk 0:02:47]} 5. gxf3 {[%clk 0:02:59]}  Nc6 {[%clk 0:02:26]} 6. Qxb7 {[%clk 0:02:43]}  Nb4 {[%clk 0:02:25]} 7. Na3 {[%clk 0:02:41]}  Rb8 {[%clk 0:02:23]} 8. Qxa7 {[%clk 0:02:41]}  Ra8 {[%clk 0:02:23]} 9. Qb7 {[%clk 0:02:33]}  Rb8 {[%clk 0:02:21]} 10. Qa7 {[%clk 0:02:28]}  Ra8 {[%clk 0:02:21]} 11. Qb7 {[%clk 0:02:04]}  Rb8 {[%clk 0:02:20]} 12. Qa7 {[%clk 0:02:03]} 1/2-1/2


[Site "https://www.chess.com"]

[Event "Titled Tuesday Blitz August 22 Late 2023"]
[White "Bongo Akanga Ndjila, Barthelemy"]
[Black "Cooper, Aaron"]
[WhiteFideId "10609431"]
[BlackFideId "2634945"]
[WhiteElo "2035"]
[BlackElo "2256"]
[Result "0-1"]
[Round "6"]
[TimeControl "180+1"]
[Date "2023.08.22"]
[WhiteClock "0:00:00"]
[BlackClock "0:00:34"]
[Board "181"]

1. d4 {[%clk 0:01:12]}  Nf6 {[%clk 0:02:59]} 2. c4 {[%clk 0:01:12]}  g6 {[%clk 0:02:58]} 3. Nc3 {[%clk 0:01:10]}  Bg7 {[%clk 0:02:58]} 4. e4 {[%clk 0:01:10]}  d6 {[%clk 0:02:58]} 5. Be2 {[%clk 0:01:11]}  O-O {[%clk 0:02:58]} 6. Nf3 {[%clk 0:01:11]}  Bg4 {[%clk 0:02:58]} 7. Be3 {[%clk 0:01:10]}  Nbd7 {[%clk 0:02:57]} 8. O-O {[%clk 0:01:08]}  c5 {[%clk 0:02:55]} 9. d5 {[%clk 0:00:58]}  a6 {[%clk 0:02:54]} 10. Qd2 {[%clk 0:00:44]}  b5 {[%clk 0:02:42]} 11. cxb5 {[%clk 0:00:42]}  axb5 {[%clk 0:02:43]} 12. Bxb5 {[%clk 0:00:42]}  Bxf3 {[%clk 0:02:43]} 13. gxf3 {[%clk 0:00:40]}  Ne5 {[%clk 0:02:43]} 14. Be2 {[%clk 0:00:38]}  Qa5 {[%clk 0:02:22]} 15. Bh6 {[%clk 0:00:35]}  Bxh6 {[%clk 0:02:11]} 16. Qxh6 {[%clk 0:00:33]}  Rfb8 {[%clk 0:02:12]} 17. Rfb1 {[%clk 0:00:30]}  c4 {[%clk 0:01:49]} 18. Qd2 {[%clk 0:00:29]}  Qc5 {[%clk 0:01:36]} 19. f4 {[%clk 0:00:27]}  Neg4 {[%clk 0:01:35]} 20. Bxg4 {[%clk 0:00:25]}  Nxg4 {[%clk 0:01:34]} 21. h3 {[%clk 0:00:25]}  Nf6 {[%clk 0:01:31]} 22. Kg2 {[%clk 0:00:22]}  Rb4 {[%clk 0:00:59]} 23. f3 {[%clk 0:00:20]}  Rab8 {[%clk 0:00:58]} 24. a4 {[%clk 0:00:18]}  Qb6 {[%clk 0:00:47]} 25. Nb5 {[%clk 0:00:17]}  Qc5 {[%clk 0:00:40]} 26. e5 {[%clk 0:00:17]}  dxe5 {[%clk 0:00:38]} 27. fxe5 {[%clk 0:00:16]}  Nxd5 {[%clk 0:00:39]} 28. f4 {[%clk 0:00:14]}  e6 {[%clk 0:00:36]} 29. Nd6 {[%clk 0:00:12]}  Qc6 {[%clk 0:00:32]} 30. Kh2 {[%clk 0:00:11]}  c3 {[%clk 0:00:33]} 31. Qc2 {[%clk 0:00:09]}  Rxb2 {[%clk 0:00:33]} 32. Rxb2 {[%clk 0:00:00]}  Rxb2 {[%clk 0:00:34]} 0-1


[Site "https://www.chess.com"]

[Event "Titled Tuesday Blitz August 22 Late 2023"]
[White "Naroditsky, Daniel"]
[Black "Chigaev, Maksim"]
[WhiteFideId "2026961"]
[BlackFideId "4108116"]
[WhiteElo "3163"]
[BlackElo "2960"]
[Result "1/2-1/2"]
[Round "7"]
[TimeControl "180+1"]
[Date "2023.08.22"]
[WhiteClock "0:00:02"]
[BlackClock "0:00:04"]
[Board "4"]

1. e4 {[%clk 0:03:00]}  e5 {[%clk 0:02:59]} 2. Nf3 {[%clk 0:03:01]}  Nc6 {[%clk 0:03:00]} 3. Nc3 {[%clk 0:03:01]}  Nf6 {[%clk 0:03:00]} 4. d4 {[%clk 0:03:02]}  exd4 {[%clk 0:03:00]} 5. Nd5 {[%clk 0:03:03]}  Be7 {[%clk 0:02:54]} 6. Bd3 {[%clk 0:03:02]}  d6 {[%clk 0:02:53]} 7. h3 {[%clk 0:03:02]}  O-O {[%clk 0:02:52]} 8. O-O {[%clk 0:03:02]}  Re8 {[%clk 0:02:51]} 9. Nxe7+ {[%clk 0:02:54]}  Qxe7 {[%clk 0:02:50]} 10. Re1 {[%clk 0:02:55]}  Nd7 {[%clk 0:02:45]} 11. Bb5 {[%clk 0:02:35]}  Qf6 {[%clk 0:02:23]} 12. Bxc6 {[%clk 0:02:25]}  bxc6 {[%clk 0:02:22]} 13. Nxd4 {[%clk 0:02:25]}  Bb7 {[%clk 0:02:15]} 14. Nf5 {[%clk 0:02:09]}  c5 {[%clk 0:02:11]} 15. Ng3 {[%clk 0:02:08]}  Qg6 {[%clk 0:02:05]} 16. Qg4 {[%clk 0:01:51]}  Nf6 {[%clk 0:02:01]} 17. Qxg6 {[%clk 0:01:49]}  hxg6 {[%clk 0:02:02]} 18. f3 {[%clk 0:01:49]}  a5 {[%clk 0:01:57]} 19. a4 {[%clk 0:01:45]}  d5 {[%clk 0:01:40]} 20. e5 {[%clk 0:01:32]}  Nd7 {[%clk 0:01:39]} 21. f4 {[%clk 0:01:22]}  f6 {[%clk 0:01:25]} 22. b3 {[%clk 0:01:22]}  d4 {[%clk 0:01:07]} 23. Bd2 {[%clk 0:00:57]}  fxe5 {[%clk 0:01:06]} 24. fxe5 {[%clk 0:00:58]}  Nxe5 {[%clk 0:00:49]} 25. Bf4 {[%clk 0:00:55]}  Nc6 {[%clk 0:00:49]} 26. Bxc7 {[%clk 0:00:53]}  Nb4 {[%clk 0:00:49]} 27. Rxe8+ {[%clk 0:00:49]}  Rxe8 {[%clk 0:00:49]} 28. Bxa5 {[%clk 0:00:50]}  Nxc2 {[%clk 0:00:48]} 29. Rc1 {[%clk 0:00:50]}  d3 {[%clk 0:00:46]} 30. Rd1 {[%clk 0:00:42]}  Ba6 {[%clk 0:00:36]} 31. Nf1 {[%clk 0:00:40]}  Re2 {[%clk 0:00:28]} 32. Rd2 {[%clk 0:00:20]}  Na1 {[%clk 0:00:17]} 33. Rxe2 {[%clk 0:00:06]}  dxe2 {[%clk 0:00:16]} 34. Ng3 {[%clk 0:00:06]}  Nxb3 {[%clk 0:00:16]} 35. Bc3 {[%clk 0:00:04]}  c4 {[%clk 0:00:06]} 36. Nxe2 {[%clk 0:00:03]}  Nc5 {[%clk 0:00:07]} 37. a5 {[%clk 0:00:03]}  Na4 {[%clk 0:00:07]} 38. Bb4 {[%clk 0:00:02]}  Kf7 {[%clk 0:00:08]} 39. Kf2 {[%clk 0:00:03]}  Ke6 {[%clk 0:00:08]} 40. Ke3 {[%clk 0:00:03]}  Kd5 {[%clk 0:00:09]} 41. Nf4+ {[%clk 0:00:04]}  Kc6 {[%clk 0:00:07]} 42. Nxg6 {[%clk 0:00:04]}  c3 {[%clk 0:00:07]} 43. Ba3 {[%clk 0:00:03]}  Kb5 {[%clk 0:00:06]} 44. Kd4 {[%clk 0:00:03]}  Kxa5 {[%clk 0:00:05]} 45. Nf4 {[%clk 0:00:03]}  c2 {[%clk 0:00:05]} 46. Nd5 {[%clk 0:00:03]}  Bb7 {[%clk 0:00:05]} 47. Ne3 {[%clk 0:00:03]}  Kb5 {[%clk 0:00:03]} 48. g3 {[%clk 0:00:03]}  Nb6 {[%clk 0:00:01]} 49. Nxc2 {[%clk 0:00:02]}  Nc4 {[%clk 0:00:02]} 50. Bf8 {[%clk 0:00:03]}  Bc8 {[%clk 0:00:02]} 51. h4 {[%clk 0:00:03]}  g6 {[%clk 0:00:03]} 52. Ne1 {[%clk 0:00:04]}  Bg4 {[%clk 0:00:02]} 53. Nd3 {[%clk 0:00:03]}  Nd2 {[%clk 0:00:03]} 54. Ke3 {[%clk 0:00:03]}  Nc4+ {[%clk 0:00:03]} 55. Kf4 {[%clk 0:00:04]}  Bd1 {[%clk 0:00:03]} 56. Nf2 {[%clk 0:00:03]}  Bc2 {[%clk 0:00:03]} 57. Ne4 {[%clk 0:00:03]}  Nb6 {[%clk 0:00:03]} 58. Nd6+ {[%clk 0:00:02]}  Kc6 {[%clk 0:00:04]} 59. Nf7 {[%clk 0:00:03]}  Nd7 {[%clk 0:00:04]} 60. Bg7 {[%clk 0:00:03]}  Kd5 {[%clk 0:00:04]} 61. Kg5 {[%clk 0:00:02]}  Ke6 {[%clk 0:00:04]} 62. Nh8 {[%clk 0:00:02]}  Ke7 {[%clk 0:00:02]} 63. Nxg6+ {[%clk 0:00:03]}  Kf7 {[%clk 0:00:03]} 64. Ne5+ {[%clk 0:00:02]}  Nxe5 {[%clk 0:00:04]} 65. Bxe5 {[%clk 0:00:03]}  Ke6 {[%clk 0:00:02]} 66. Bc3 {[%clk 0:00:03]}  Kf7 {[%clk 0:00:03]} 67. g4 {[%clk 0:00:04]}  Bd1 {[%clk 0:00:03]} 68. h5 {[%clk 0:00:04]}  Be2 {[%clk 0:00:04]} 69. Bd4 {[%clk 0:00:04]}  Bd1 {[%clk 0:00:04]} 70. Be5 {[%clk 0:00:04]}  Kg8 {[%clk 0:00:03]} 71. Kh4 {[%clk 0:00:03]}  Kh7 {[%clk 0:00:03]} 72. g5 {[%clk 0:00:03]}  Bc2 {[%clk 0:00:04]} 73. Bd4 {[%clk 0:00:03]}  Bd3 {[%clk 0:00:04]} 74. Bc3 {[%clk 0:00:04]}  Bc2 {[%clk 0:00:04]} 75. Kg4 {[%clk 0:00:04]}  Bd1+ {[%clk 0:00:04]} 76. Kh4 {[%clk 0:00:04]}  Bc2 {[%clk 0:00:05]} 77. Kg3 {[%clk 0:00:05]}  Bd1 {[%clk 0:00:03]} 78. Kh4 {[%clk 0:00:02]}  Bc2 {[%clk 0:00:04]} 1/2-1/2


[Site "https://www.chess.com"]

[Event "Titled Tuesday Blitz August 22 Late 2023"]
[White "Kovalev, Vladislav"]
[Black "Duda, Jan-Krzysztof"]
[WhiteFideId "13504398"]
[BlackFideId "1170546"]
[WhiteElo "2950"]
[BlackElo "3082"]
[Result "0-1"]
[Round "7"]
[TimeControl "180+1"]
[Date "2023.08.22"]
[WhiteClock "0:00:10"]
[BlackClock "0:00:30"]
[Board "6"]

1. e4 {[%clk 0:03:00]}  c6 {[%clk 0:03:00]} 2. Nf3 {[%clk 0:03:01]}  d5 {[%clk 0:03:01]} 3. d3 {[%clk 0:03:01]}  Qc7 {[%clk 0:02:59]} 4. Nc3 {[%clk 0:02:54]}  dxe4 {[%clk 0:02:59]} 5. Nxe4 {[%clk 0:02:48]}  Nf6 {[%clk 0:02:57]} 6. Qe2 {[%clk 0:02:48]}  Nbd7 {[%clk 0:02:46]} 7. g3 {[%clk 0:02:48]}  Nxe4 {[%clk 0:02:42]} 8. Qxe4 {[%clk 0:02:49]}  Nf6 {[%clk 0:02:41]} 9. Qe2 {[%clk 0:02:41]}  Bg4 {[%clk 0:02:33]} 10. Bg2 {[%clk 0:02:41]}  e6 {[%clk 0:02:25]} 11. O-O {[%clk 0:02:41]}  Bd6 {[%clk 0:02:22]} 12. b3 {[%clk 0:02:34]}  O-O-O {[%clk 0:02:15]} 13. Rb1 {[%clk 0:02:10]}  h5 {[%clk 0:02:10]} 14. Bg5 {[%clk 0:02:08]}  h4 {[%clk 0:02:07]} 15. b4 {[%clk 0:02:01]}  hxg3 {[%clk 0:02:01]} 16. hxg3 {[%clk 0:01:28]}  Rh5 {[%clk 0:02:02]} 17. Bxf6 {[%clk 0:00:55]}  gxf6 {[%clk 0:02:02]} 18. Qe3 {[%clk 0:00:55]}  a6 {[%clk 0:01:58]} 19. Nd2 {[%clk 0:00:52]}  f5 {[%clk 0:01:32]} 20. f4 {[%clk 0:00:49]}  Rdh8 {[%clk 0:01:13]} 21. Nc4 {[%clk 0:00:48]}  Bh3 {[%clk 0:01:13]} 22. Rf2 {[%clk 0:00:42]}  Bxg2 {[%clk 0:01:13]} 23. Kxg2 {[%clk 0:00:42]}  Rh2+ {[%clk 0:00:52]} 24. Kf3 {[%clk 0:00:43]}  R2h3 {[%clk 0:00:52]} 25. Kg2 {[%clk 0:00:38]}  Qd8 {[%clk 0:00:44]} 26. a4 {[%clk 0:00:36]}  Bc7 {[%clk 0:00:36]} 27. Rg1 {[%clk 0:00:32]}  b5 {[%clk 0:00:30]} 28. axb5 {[%clk 0:00:31]}  axb5 {[%clk 0:00:31]} 29. Ne5 {[%clk 0:00:12]}  Bb6 {[%clk 0:00:29]} 30. Qf3 {[%clk 0:00:12]}  Rh2+ {[%clk 0:00:29]} 31. Kf1 {[%clk 0:00:10]}  Rxf2+ {[%clk 0:00:30]} 0-1


[Site "https://www.chess.com"]